[Event "Betsys MČR v online bleskovém šachu 2021"]
[Site "Chess.com"]
[Date "2021.04.17"]
[Round "12"]
[White "matyson523"]
[Black "ghostdog777"]
[Result "1-0"]
[WhiteElo "1862"]
[BlackElo "1997"]
[TimeControl "180+1"]
[EndTime "10:58:29 PDT"]
[Termination "Uživatel matyson523 zvítězil matem"]

1. e4 {[%clk 0:03:00.9]} 1... e5 {[%clk 0:02:56.2]} 2. Nf3 {[%clk 0:03:00.8]}
2... Nc6 {[%clk 0:02:56.1]} 3. d4 {[%clk 0:03:00.6]} 3... exd4 {[%clk
0:02:55.5]} 4. Bc4 {[%clk 0:03:00.6]} 4... d6 {[%clk 0:02:52.4]} 5. Nxd4 {[%clk
0:02:59.9]} 5... Qf6 {[%clk 0:02:50.4]} 6. Be3 {[%clk 0:02:58.1]} 6... Qg6
{[%clk 0:02:44.8]} 7. O-O {[%clk 0:02:50.9]} 7... Ne5 {[%clk 0:02:35.2]} 8. Bb3
{[%clk 0:02:44.8]} 8... Bh3 {[%clk 0:02:33.3]} 9. g3 {[%clk 0:02:29.9]} 9...
Qxe4 {[%clk 0:02:27.3]} 10. Bxf7+ {[%clk 0:02:11.4]} 10... Kxf7 {[%clk 0:02:21]}
11. Qh5+ {[%clk 0:02:10.9]} 11... g6 {[%clk 0:02:13.4]} 12. Qxh3 {[%clk
0:02:10.8]} 12... c5 {[%clk 0:02:12.3]} 13. Nc3 {[%clk 0:01:52]} 13... Qg4
{[%clk 0:02:09.4]} 14. Qxg4 {[%clk 0:01:50]} 14... Nxg4 {[%clk 0:02:08.9]} 15.
Nf3 {[%clk 0:01:43.9]} 15... h6 {[%clk 0:01:54]} 16. Nd5 {[%clk 0:01:42.8]}
16... Bg7 {[%clk 0:01:50.8]} 17. h3 {[%clk 0:01:37.7]} 17... Nxe3 {[%clk
0:01:49]} 18. fxe3 {[%clk 0:01:36.3]} 18... Bxb2 {[%clk 0:01:40.7]} 19. Rab1
{[%clk 0:01:35.1]} 19... Bf6 {[%clk 0:01:37.6]} 20. Rxb7+ {[%clk 0:01:34.5]}
20... Ke6 {[%clk 0:01:36.8]} 21. Nc7+ {[%clk 0:01:34.7]} 21... Kf5 {[%clk
0:01:33.6]} 22. Nd2+ {[%clk 0:01:34]} 22... Ke5 {[%clk 0:01:32.4]} 23. Nxa8
{[%clk 0:01:28.7]} 23... Ne7 {[%clk 0:01:31.3]} 24. Ne4 {[%clk 0:01:21.2]} 24...
Kxe4 {[%clk 0:01:28.8]} 25. Rxf6 {[%clk 0:01:21.1]} 25... Nf5 {[%clk 0:01:29.4]}
26. Nc7 {[%clk 0:01:14.5]} 26... Nxe3 {[%clk 0:01:28.2]} 27. Re6+ {[%clk
0:01:12.1]} 27... Kf3 {[%clk 0:01:28.2]} 28. Rb3 {[%clk 0:01:09.5]} 28... Re8
{[%clk 0:01:25.6]} 29. Rbxe3# {[%clk 0:01:08.8]} 1-0

[Event "Betsys MČR v online bleskovém šachu 2021"]
[Site "Chess.com"]
[Date "2021.04.17"]
[Round "12"]
[White "tucnak64"]
[Black "FutureFideMasseur"]
[Result "1-0"]
[WhiteElo "2149"]
[BlackElo "2418"]
[TimeControl "180+1"]
[EndTime "10:58:47 PDT"]
[Termination "Uživatel tucnak64 zvítězil po vzdání soupeře"]

1. d4 {[%clk 0:03:00.9]} 1... Nf6 {[%clk 0:02:59.8]} 2. Nf3 {[%clk 0:03:00.7]}
2... d5 {[%clk 0:02:59.5]} 3. c4 {[%clk 0:03:00.2]} 3... e6 {[%clk 0:02:58.7]}
4. Nc3 {[%clk 0:03:00.2]} 4... Be7 {[%clk 0:02:57.2]} 5. Bg5 {[%clk 0:02:59.6]}
5... O-O {[%clk 0:02:56.3]} 6. e3 {[%clk 0:02:59.5]} 6... h6 {[%clk 0:02:55.9]}
7. Bf4 {[%clk 0:02:58.4]} 7... Nh5 {[%clk 0:02:45.8]} 8. Be5 {[%clk 0:02:53.3]}
8... c6 {[%clk 0:02:38.1]} 9. g4 {[%clk 0:02:37.5]} 9... Nf6 {[%clk 0:02:38.2]}
10. Rg1 {[%clk 0:02:36.9]} 10... Ne4 {[%clk 0:02:15.2]} 11. Qc2 {[%clk
0:02:31.8]} 11... Nxc3 {[%clk 0:02:11]} 12. bxc3 {[%clk 0:02:30.8]} 12... Nd7
{[%clk 0:02:11]} 13. Bf4 {[%clk 0:02:25.2]} 13... Nf6 {[%clk 0:01:27.9]} 14. g5
{[%clk 0:02:15.3]} 14... hxg5 {[%clk 0:01:28]} 15. Nxg5 {[%clk 0:02:14]} 15...
b6 {[%clk 0:01:22.9]} 16. Be5 {[%clk 0:01:57.4]} 16... g6 {[%clk 0:01:22.1]} 17.
Bd3 {[%clk 0:01:46.6]} 17... Ne8 {[%clk 0:00:49.8]} 18. Bxg6 {[%clk 0:01:36.8]}
18... f6 {[%clk 0:00:31.9]} 19. Bxe8 {[%clk 0:01:22.8]} 1-0

[Event "Betsys MČR v online bleskovém šachu 2021"]
[Site "Chess.com"]
[Date "2021.04.17"]
[Round "12"]
[White "LightningAttack_2000"]
[Black "Michaela1994"]
[Result "1-0"]
[WhiteElo "1870"]
[BlackElo "1642"]
[TimeControl "180+1"]
[EndTime "10:58:53 PDT"]
[Termination "Uživatel LightningAttack_2000 zvítězil matem"]

1. e4 {[%clk 0:03:00.9]} 1... e6 {[%clk 0:02:59.9]} 2. d4 {[%clk 0:02:58.2]}
2... d5 {[%clk 0:02:59.8]} 3. Nd2 {[%clk 0:02:58.7]} 3... c5 {[%clk 0:02:58.1]}
4. exd5 {[%clk 0:02:57.9]} 4... Qxd5 {[%clk 0:02:57.8]} 5. Ngf3 {[%clk
0:02:57.4]} 5... Nc6 {[%clk 0:02:54.6]} 6. Bc4 {[%clk 0:02:56.7]} 6... Qd8
{[%clk 0:02:53.8]} 7. dxc5 {[%clk 0:02:51.5]} 7... Bxc5 {[%clk 0:02:52.5]} 8.
O-O {[%clk 0:02:51.7]} 8... Nf6 {[%clk 0:02:49.3]} 9. Qe2 {[%clk 0:02:48]} 9...
O-O {[%clk 0:02:46.9]} 10. Rd1 {[%clk 0:02:47.7]} 10... Qc7 {[%clk 0:02:43.7]}
11. Nb3 {[%clk 0:02:45.7]} 11... Bb6 {[%clk 0:02:40.4]} 12. Bg5 {[%clk
0:02:43.9]} 12... Ng4 {[%clk 0:02:38.5]} 13. Bh4 {[%clk 0:02:34.5]} 13... Nce5
{[%clk 0:02:19.3]} 14. Nxe5 {[%clk 0:02:31.6]} 14... Nxe5 {[%clk 0:02:16]} 15.
Bg3 {[%clk 0:02:31.2]} 15... Qxc4 {[%clk 0:02:13.2]} 16. Qxe5 {[%clk 0:02:29.4]}
16... Qxc2 {[%clk 0:02:06.8]} 17. Rac1 {[%clk 0:02:27.6]} 17... Qg6 {[%clk
0:02:00.3]} 18. Rc4 {[%clk 0:02:13.9]} 18... Rd8 {[%clk 0:01:37.7]} 19. Rxd8+
{[%clk 0:02:12]} 19... Bxd8 {[%clk 0:01:37]} 20. h3 {[%clk 0:02:12.1]} 20... Bf6
{[%clk 0:01:23.4]} 21. Qe2 {[%clk 0:02:10.7]} 21... h6 {[%clk 0:01:21.7]} 22.
Rg4 {[%clk 0:02:10.2]} 22... Qb1+ {[%clk 0:01:18.6]} 23. Kh2 {[%clk 0:02:08.4]}
23... Qxa2 {[%clk 0:01:16.4]} 24. Be5 {[%clk 0:02:02.5]} 24... Qxb3 {[%clk
0:00:46]} 25. Bxf6 {[%clk 0:02:02.1]} 25... g6 {[%clk 0:00:46.2]} 26. Qd2 {[%clk
0:01:59.8]} 26... Qd5 {[%clk 0:00:18.2]} 27. Qxh6 {[%clk 0:01:57.6]} 27... Qd6+
{[%clk 0:00:16.4]} 28. Rg3 {[%clk 0:01:55.4]} 28... Qf8 {[%clk 0:00:13.2]} 29.
Qh8# {[%clk 0:01:55.5]} 1-0

[Event "Betsys MČR v online bleskovém šachu 2021"]
[Site "Chess.com"]
[Date "2021.04.17"]
[Round "12"]
[White "Maldaj"]
[Black "krystofkrizek1"]
[Result "1-0"]
[WhiteElo "2386"]
[BlackElo "2134"]
[TimeControl "180+1"]
[EndTime "10:58:56 PDT"]
[Termination "Uživatel Maldaj zvítězil na čas"]

1. e4 {[%clk 0:03:00.9]} 1... g6 {[%clk 0:03:00]} 2. d4 {[%clk 0:03:00.5]} 2...
d5 {[%clk 0:03:00]} 3. exd5 {[%clk 0:02:55.1]} 3... Nf6 {[%clk 0:02:59.8]} 4. c4
{[%clk 0:02:54.8]} 4... Bg7 {[%clk 0:02:59.1]} 5. Nc3 {[%clk 0:02:54]} 5... a6
{[%clk 0:02:54.3]} 6. Nf3 {[%clk 0:02:52.2]} 6... Bg4 {[%clk 0:02:52]} 7. Be2
{[%clk 0:02:51.9]} 7... b5 {[%clk 0:02:52.2]} 8. b3 {[%clk 0:02:51.2]} 8... c5
{[%clk 0:02:42.3]} 9. Be3 {[%clk 0:02:45.5]} 9... Qa5 {[%clk 0:02:29.5]} 10. Bd2
{[%clk 0:02:42.3]} 10... b4 {[%clk 0:01:48.2]} 11. Na4 {[%clk 0:02:39.1]} 11...
Ne4 {[%clk 0:01:35]} 12. O-O {[%clk 0:02:31.8]} 12... Nxd2 {[%clk 0:00:43.4]}
13. Qxd2 {[%clk 0:02:28.5]} 13... Bxf3 {[%clk 0:00:34.8]} 14. Bxf3 {[%clk
0:02:14.9]} 14... Bxd4 {[%clk 0:00:35.3]} 15. Rae1 {[%clk 0:02:10.5]} 15... O-O
{[%clk 0:00:26.7]} 16. Rxe7 {[%clk 0:02:07.9]} 16... Bf6 {[%clk 0:00:14.9]} 17.
d6 {[%clk 0:02:06.7]} 17... Nc6 {[%clk 0:00:08.5]} 18. Bxc6 {[%clk 0:02:04.7]}
18... Rac8 {[%clk 0:00:08.9]} 19. Bd5 {[%clk 0:02:00.7]} 19... Rcd8 {[%clk
0:00:08.6]} 20. Rxf7 {[%clk 0:01:52.3]} 20... Rxf7 {[%clk 0:00:06.3]} 21. Qf4
{[%clk 0:01:50.9]} 1-0

[Event "Betsys MČR v online bleskovém šachu 2021"]
[Site "Chess.com"]
[Date "2021.04.17"]
[Round "12"]
[White "Ami2013"]
[Black "DenisaD2008"]
[Result "0-1"]
[WhiteElo "496"]
[BlackElo "954"]
[TimeControl "180+1"]
[EndTime "10:58:58 PDT"]
[Termination "Uživatel DenisaD2008 zvítězil matem"]

1. e4 {[%clk 0:03:00.9]} 1... e5 {[%clk 0:03:00.3]} 2. Nf3 {[%clk 0:02:59.9]}
2... Nc6 {[%clk 0:03:00.6]} 3. Bc4 {[%clk 0:02:58.1]} 3... Bc5 {[%clk 0:03:01]}
4. Ng5 {[%clk 0:02:55.9]} 4... Qxg5 {[%clk 0:02:58.3]} 5. d3 {[%clk 0:02:53.8]}
5... Qe7 {[%clk 0:02:56.1]} 6. O-O {[%clk 0:02:48.1]} 6... Nf6 {[%clk
0:02:53.4]} 7. Bg5 {[%clk 0:01:54.6]} 7... h6 {[%clk 0:02:50.5]} 8. Bxf6 {[%clk
0:01:18.8]} 8... Qxf6 {[%clk 0:02:49.2]} 9. Nc3 {[%clk 0:00:46]} 9... d6 {[%clk
0:02:45.5]} 10. d4 {[%clk 0:00:45.1]} 10... exd4 {[%clk 0:02:44.2]} 11. Nd5
{[%clk 0:00:39.6]} 11... Qg5 {[%clk 0:02:17.3]} 12. Nxc7+ {[%clk 0:00:38.2]}
12... Kf8 {[%clk 0:02:16.4]} 13. Nxa8 {[%clk 0:00:36.2]} 13... Bh3 {[%clk
0:02:15.4]} 14. g3 {[%clk 0:00:17.7]} 14... Ne5 {[%clk 0:02:13.2]} 15. Re1
{[%clk 0:00:16.5]} 15... Nxc4 {[%clk 0:02:08.4]} 16. Qd3 {[%clk 0:00:15.1]}
16... Nxb2 {[%clk 0:02:03.2]} 17. Qb3 {[%clk 0:00:14.4]} 17... d3 {[%clk
0:01:56.2]} 18. Qxb7 {[%clk 0:00:13.4]} 18... Qf6 {[%clk 0:01:48.3]} 19. Qd7
{[%clk 0:00:08.5]} 19... Qxf2+ {[%clk 0:01:44.8]} 20. Kh1 {[%clk 0:00:04.2]}
20... Qg2# {[%clk 0:01:45]} 0-1

[Event "Betsys MČR v online bleskovém šachu 2021"]
[Site "Chess.com"]
[Date "2021.04.17"]
[Round "12"]
[White "Paulz64"]
[Black "Clockwork7orange"]
[Result "1-0"]
[WhiteElo "2485"]
[BlackElo "2322"]
[TimeControl "180+1"]
[EndTime "10:59:00 PDT"]
[Termination "Uživatel Paulz64 zvítězil po vzdání soupeře"]

1. d4 {[%clk 0:03:00.9]} 1... g6 {[%clk 0:03:00]} 2. c4 {[%clk 0:03:00.9]} 2...
Bg7 {[%clk 0:03:00.5]} 3. Nf3 {[%clk 0:03:01.5]} 3... d6 {[%clk 0:03:01]} 4. Nc3
{[%clk 0:03:00.7]} 4... e5 {[%clk 0:03:01]} 5. Bg5 {[%clk 0:02:56.7]} 5... f6
{[%clk 0:02:16.1]} 6. Bh4 {[%clk 0:02:53.1]} 6... g5 {[%clk 0:02:06.1]} 7. Bg3
{[%clk 0:02:52.4]} 7... h5 {[%clk 0:02:05.1]} 8. h3 {[%clk 0:02:42.1]} 8... Nc6
{[%clk 0:02:02]} 9. dxe5 {[%clk 0:02:23.8]} 9... dxe5 {[%clk 0:01:55.2]} 10. Qc2
{[%clk 0:02:13.8]} 10... Be6 {[%clk 0:01:28.5]} 11. Rd1 {[%clk 0:02:03.8]} 11...
Qe7 {[%clk 0:01:17.5]} 12. Nd5 {[%clk 0:02:03.8]} 12... Bxd5 {[%clk 0:01:15]}
13. cxd5 {[%clk 0:02:03.6]} 13... Nb4 {[%clk 0:01:04.5]} 14. Qa4+ {[%clk
0:01:54.2]} 14... b5 {[%clk 0:00:38.9]} 15. Qxb5+ {[%clk 0:01:41.1]} 15... c6
{[%clk 0:00:39]} 16. Qa4 {[%clk 0:01:40.6]} 16... Rd8 {[%clk 0:00:17.8]} 17. e4
{[%clk 0:01:28.8]} 1-0

[Event "Betsys MČR v online bleskovém šachu 2021"]
[Site "Chess.com"]
[Date "2021.04.17"]
[Round "12"]
[White "misacz"]
[Black "vikysachy"]
[Result "0-1"]
[WhiteElo "1057"]
[BlackElo "872"]
[TimeControl "180+1"]
[EndTime "10:59:00 PDT"]
[Termination "Uživatel vikysachy zvítězil matem"]

1. d4 {[%clk 0:03:00]} 1... d5 {[%clk 0:02:59.3]} 2. Nf3 {[%clk 0:02:59.7]} 2...
Nc6 {[%clk 0:02:55.5]} 3. e3 {[%clk 0:02:59.3]} 3... Nf6 {[%clk 0:02:54.4]} 4.
Bd3 {[%clk 0:02:58.8]} 4... b6 {[%clk 0:02:42.6]} 5. Nbd2 {[%clk 0:02:58.2]}
5... Bb7 {[%clk 0:02:41.3]} 6. Qe2 {[%clk 0:02:58]} 6... e6 {[%clk 0:02:39]} 7.
O-O {[%clk 0:02:57.9]} 7... Qd6 {[%clk 0:02:27.8]} 8. c3 {[%clk 0:02:56.4]} 8...
Ng4 {[%clk 0:02:24.9]} 9. g3 {[%clk 0:02:53.2]} 9... Qe7 {[%clk 0:02:16.8]} 10.
e4 {[%clk 0:02:49.8]} 10... dxe4 {[%clk 0:02:10]} 11. Qxe4 {[%clk 0:02:49.3]}
11... Nf6 {[%clk 0:02:04.8]} 12. Qe3 {[%clk 0:02:44.8]} 12... Ng4 {[%clk
0:02:03.6]} 13. Qf4 {[%clk 0:02:41.6]} 13... Nf6 {[%clk 0:01:56.3]} 14. Ne4
{[%clk 0:02:27.7]} 14... Nd5 {[%clk 0:01:51.5]} 15. Qd2 {[%clk 0:02:20]} 15...
O-O-O {[%clk 0:01:45.3]} 16. a4 {[%clk 0:02:16.6]} 16... h5 {[%clk 0:01:33.4]}
17. a5 {[%clk 0:02:15.5]} 17... Nxa5 {[%clk 0:01:30]} 18. Qe2 {[%clk 0:02:11.3]}
18... h4 {[%clk 0:01:28.2]} 19. Nxh4 {[%clk 0:02:10.4]} 19... g5 {[%clk
0:01:18.7]} 20. Bxg5 {[%clk 0:02:08.5]} 20... f6 {[%clk 0:01:16.8]} 21. Be3
{[%clk 0:01:54.5]} 21... Bh6 {[%clk 0:01:08.4]} 22. Ng6 {[%clk 0:01:48.9]} 22...
Qg7 {[%clk 0:00:59.9]} 23. Nxh8 {[%clk 0:01:47.8]} 23... Rxh8 {[%clk 0:00:58]}
24. Bxh6 {[%clk 0:01:46.9]} 24... Qxh6 {[%clk 0:00:55.9]} 25. h4 {[%clk
0:01:32.3]} 25... Nf4 {[%clk 0:00:53.5]} 26. gxf4 {[%clk 0:01:28.6]} 26... Qxh4
{[%clk 0:00:50.6]} 27. Nd2 {[%clk 0:01:20.9]} 27... Qh2# {[%clk 0:00:46.7]} 0-1

[Event "Betsys MČR v online bleskovém šachu 2021"]
[Site "Chess.com"]
[Date "2021.04.17"]
[Round "12"]
[White "jsebesta"]
[Black "Hapinka"]
[Result "1-0"]
[WhiteElo "1670"]
[BlackElo "1805"]
[TimeControl "180+1"]
[EndTime "10:59:03 PDT"]
[Termination "Uživatel jsebesta zvítězil po vzdání soupeře"]

1. e4 {[%clk 0:03:00.9]} 1... e5 {[%clk 0:02:59.9]} 2. Nf3 {[%clk 0:03:00.2]}
2... Nc6 {[%clk 0:03:00.5]} 3. Bc4 {[%clk 0:02:59.8]} 3... Bc5 {[%clk 0:02:58]}
4. b4 {[%clk 0:02:58.1]} 4... Bxb4 {[%clk 0:02:57.5]} 5. c3 {[%clk 0:02:57.9]}
5... Ba5 {[%clk 0:02:57.8]} 6. d4 {[%clk 0:02:57.8]} 6... exd4 {[%clk
0:02:57.7]} 7. O-O {[%clk 0:02:57.5]} 7... d6 {[%clk 0:02:41.9]} 8. cxd4 {[%clk
0:02:54.1]} 8... Nf6 {[%clk 0:02:35.7]} 9. e5 {[%clk 0:02:42.2]} 9... dxe5
{[%clk 0:02:35.1]} 10. Ba3 {[%clk 0:02:41.5]} 10... e4 {[%clk 0:02:18.6]} 11.
Ng5 {[%clk 0:02:38.1]} 11... Be6 {[%clk 0:02:00.2]} 12. Bxe6 {[%clk 0:02:21.3]}
12... fxe6 {[%clk 0:02:00.1]} 13. Nxe6 {[%clk 0:02:21.6]} 13... Qd7 {[%clk
0:01:51.1]} 14. Qb3 {[%clk 0:01:54.3]} 14... Qd5 {[%clk 0:01:40.3]} 15. Qxb7
{[%clk 0:01:50.9]} 15... Nxd4 {[%clk 0:01:13.3]} 16. Nxc7+ {[%clk 0:01:39.7]}
16... Bxc7 {[%clk 0:01:11.4]} 17. Qxc7 {[%clk 0:01:39.4]} 17... Qd7 {[%clk
0:00:33]} 18. Qe5+ {[%clk 0:01:31.6]} 18... Ne6 {[%clk 0:00:32.4]} 19. Nc3
{[%clk 0:01:24.6]} 19... Kf7 {[%clk 0:00:31.6]} 20. Nb5 {[%clk 0:01:17.5]} 20...
Rac8 {[%clk 0:00:25.6]} 21. Nd6+ {[%clk 0:01:17.2]} 1-0

[Event "Betsys MČR v online bleskovém šachu 2021"]
[Site "Chess.com"]
[Date "2021.04.17"]
[Round "12"]
[White "indebol"]
[Black "JosefBara"]
[Result "1/2-1/2"]
[WhiteElo "1548"]
[BlackElo "1323"]
[TimeControl "180+1"]
[EndTime "10:59:03 PDT"]
[Termination "Remíza opakováním pozice"]

1. e4 {[%clk 0:03:00]} 1... e6 {[%clk 0:03:00.4]} 2. Nf3 {[%clk 0:03:00]} 2...
d5 {[%clk 0:03:00.8]} 3. exd5 {[%clk 0:03:00]} 3... exd5 {[%clk 0:03:01.1]} 4.
d4 {[%clk 0:02:58.8]} 4... Nf6 {[%clk 0:03:01.1]} 5. Bd3 {[%clk 0:02:58.1]} 5...
Be7 {[%clk 0:03:01.4]} 6. O-O {[%clk 0:02:58.1]} 6... O-O {[%clk 0:03:01.6]} 7.
Nbd2 {[%clk 0:02:56.6]} 7... Bg4 {[%clk 0:03:01.8]} 8. h3 {[%clk 0:02:55.1]}
8... Bh5 {[%clk 0:03:01]} 9. Re1 {[%clk 0:02:48.9]} 9... Re8 {[%clk 0:02:59.9]}
10. Nf1 {[%clk 0:02:48.9]} 10... c6 {[%clk 0:02:58]} 11. Ng3 {[%clk 0:02:49]}
11... Bxf3 {[%clk 0:02:57]} 12. Qxf3 {[%clk 0:02:47.3]} 12... Nbd7 {[%clk
0:02:56.4]} 13. Bd2 {[%clk 0:02:44.9]} 13... Nb6 {[%clk 0:02:55.5]} 14. b3
{[%clk 0:02:36.8]} 14... Rc8 {[%clk 0:02:51.9]} 15. c4 {[%clk 0:02:23.9]} 15...
dxc4 {[%clk 0:02:51.5]} 16. Bxc4 {[%clk 0:02:21.1]} 16... Nxc4 {[%clk
0:02:51.3]} 17. bxc4 {[%clk 0:02:19.8]} 17... Qxd4 {[%clk 0:02:47.5]} 18. Be3
{[%clk 0:02:08.1]} 18... Qxc4 {[%clk 0:02:40]} 19. Bxa7 {[%clk 0:02:08.2]} 19...
Bc5 {[%clk 0:02:37.1]} 20. Bxc5 {[%clk 0:02:04.3]} 20... Qxc5 {[%clk 0:02:36.4]}
21. Rec1 {[%clk 0:01:52]} 21... Qb4 {[%clk 0:02:29.7]} 22. Rab1 {[%clk
0:01:48.6]} 22... Qe7 {[%clk 0:02:26.9]} 23. Nf5 {[%clk 0:01:41.5]} 23... Qc7
{[%clk 0:02:22.8]} 24. a4 {[%clk 0:01:28.5]} 24... Ne4 {[%clk 0:02:03.3]} 25.
Qg4 {[%clk 0:01:17.3]} 25... g6 {[%clk 0:01:57.9]} 26. Rb4 {[%clk 0:00:50.5]}
26... Nf6 {[%clk 0:01:41.2]} 27. Qg5 {[%clk 0:00:43.2]} 27... Ne4 {[%clk
0:01:37.7]} 28. Qg4 {[%clk 0:00:40.9]} 28... Nf6 {[%clk 0:01:34.8]} 29. Qg5
{[%clk 0:00:37.9]} 29... Ne4 {[%clk 0:01:33.2]} 30. Qg4 {[%clk 0:00:37.4]}
1/2-1/2

[Event "Betsys MČR v online bleskovém šachu 2021"]
[Site "Chess.com"]
[Date "2021.04.17"]
[Round "12"]
[White "Vojta0007"]
[Black "ikovacs"]
[Result "1-0"]
[WhiteElo "1459"]
[BlackElo "1086"]
[TimeControl "180+1"]
[EndTime "10:59:08 PDT"]
[Termination "Uživatel Vojta0007 zvítězil po vzdání soupeře"]

1. d4 {[%clk 0:03:00.9]} 1... d5 {[%clk 0:02:57.7]} 2. Nf3 {[%clk 0:03:00]} 2...
e6 {[%clk 0:02:57.1]} 3. e3 {[%clk 0:02:58.2]} 3... c5 {[%clk 0:02:56.2]} 4. c4
{[%clk 0:02:57.4]} 4... cxd4 {[%clk 0:02:55.2]} 5. Nxd4 {[%clk 0:02:56.6]} 5...
dxc4 {[%clk 0:02:51.7]} 6. Bxc4 {[%clk 0:02:55.5]} 6... Nc6 {[%clk 0:02:43]} 7.
Nxc6 {[%clk 0:02:43.3]} 7... Qxd1+ {[%clk 0:02:41.4]} 8. Kxd1 {[%clk 0:02:42.7]}
8... bxc6 {[%clk 0:02:41.5]} 9. Nc3 {[%clk 0:02:41.9]} 9... Bb4 {[%clk
0:02:39.8]} 10. Bd2 {[%clk 0:02:39.9]} 10... Nf6 {[%clk 0:02:35.8]} 11. a3
{[%clk 0:02:37.9]} 11... Bxc3 {[%clk 0:02:34.9]} 12. Bxc3 {[%clk 0:02:36.9]}
12... O-O {[%clk 0:02:34.6]} 13. Ke2 {[%clk 0:02:35.9]} 13... Ne4 {[%clk
0:02:31.6]} 14. Bd4 {[%clk 0:02:27.9]} 14... a5 {[%clk 0:02:28]} 15. f3 {[%clk
0:02:20.4]} 15... Nd6 {[%clk 0:02:23.1]} 16. Bd3 {[%clk 0:02:13.5]} 16... Ba6
{[%clk 0:02:18.6]} 17. Bxa6 {[%clk 0:02:10.2]} 17... Rxa6 {[%clk 0:02:17.9]} 18.
Bc5 {[%clk 0:02:09.4]} 18... Rd8 {[%clk 0:02:14.8]} 19. Rhd1 {[%clk 0:02:04.5]}
19... Nb7 {[%clk 0:02:04.9]} 20. Rxd8+ {[%clk 0:01:51.9]} 20... Nxd8 {[%clk
0:02:03.6]} 21. Rd1 {[%clk 0:01:51.2]} 21... Nb7 {[%clk 0:01:53.8]} 22. Rd7
{[%clk 0:01:43.3]} 22... g6 {[%clk 0:01:39.2]} 23. Rxb7 {[%clk 0:01:41.9]} 23...
a4 {[%clk 0:01:39.2]} 24. Bd4 {[%clk 0:01:34.4]} 24... f5 {[%clk 0:01:24.5]} 25.
Rg7+ {[%clk 0:01:31]} 25... Kf8 {[%clk 0:01:21.8]} 26. Rxh7 {[%clk 0:01:28.7]}
26... Ra5 {[%clk 0:01:21.3]} 27. Rb7 {[%clk 0:01:17]} 27... Rb5 {[%clk
0:01:18.9]} 28. Rxb5 {[%clk 0:01:14.6]} 28... cxb5 {[%clk 0:01:18.8]} 29. Kd3
{[%clk 0:01:13.1]} 29... Ke7 {[%clk 0:01:16.4]} 30. Bc5+ {[%clk 0:01:12]} 30...
Kd7 {[%clk 0:01:15.6]} 31. Kd4 {[%clk 0:01:11]} 31... Kc6 {[%clk 0:01:13.6]} 32.
Bb4 {[%clk 0:01:10.1]} 32... Kb6 {[%clk 0:01:10.8]} 33. Ke5 {[%clk 0:01:09.1]}
33... Kc6 {[%clk 0:01:09.7]} 34. Kxe6 {[%clk 0:01:08.5]} 34... Kc7 {[%clk
0:01:08.1]} 35. Kf6 {[%clk 0:01:06.7]} 1-0